Workbook

Sheet Notes
A1: This spreadsheet illustrates many of the numbered formulas in Sections 7,8 and 9.
A3: Color Codes
B4: Columns with Yellow Header
C5: Inputs -- these can be modified to see results in the other columns
B7: Columns with Green Header
C8: These implement the solution using standard Excel functions
C9: Do not modify -- or modify only if you intend to modify the logic or implement alternative logic
B11: Columns with Blue Header
C12: These implement the solution using (Visual Basic for Application (VBA) functions. I.e., "macros"
C13: Do not modify -- or modify only if you intend to modify the logic or implement alternative logic

Sheet Section 7
A1: Section | B1: Formula | C1: x | D1: n | E1: p | F1: Pr (X = x)
A2: 7.2 | B2: 7.2.1 | C2: 115 | D2: 400 | E2: 0.3 | F2: =_xlfn.BINOM.DIST(C2,D2,E2,FALSE) -> 0.03790207461
A4: Section | B4: Formula | C4: x | D4: n | E4: p | F4: Pr (X <= x)
A5: 7.2 | B5: 7.2.2 | C5: 115 | D5: 400 | E5: 0.3 | F5: =_xlfn.BINOM.DIST(C5,D5,E5,TRUE) -> 0.3137067185
A9: Section | B9: Formula | C9: x | D9: n | E9: M | F9: N | G9: Pr (X = x)
A10: 7.3 | B10: 7.3.1 | C10: 115 | D10: 400 | E10: 3000 | F10: 10000 | G10: =_xlfn.HYPGEOM.DIST(C10,D10,E10,F10,FALSE) -> 0.03842553038
A12: Section | B12: Formula | C12: x | D12: n | E12: M | F12: N | G12: Pr (X <= x)
A13: 7.3 | B13: 7.3.2 | C13: 115 | D13: 400 | E13: 3000 | F13: 10000 | G13: =_xlfn.HYPGEOM.DIST(C13,D13,E13,F13,TRUE) -> 0.3099804025
A17: Section | B17: Formula | C17: n | D17: p | E17: Mean of X
A18: 7.4 | B18: 7.4.1 | C18: 400 | D18: 0.3 | E18: =C18*D18 -> 120
A20: Section | B20: Formula | C20: n | D20: p | E20: Std Dev of X
A21: 7.4 | B21: 7.4.2 | C21: 400 | D21: 0.3 | E21: =(C21*D21*(1-D21))^0.5 -> 9.16515139
A23: Section | B23: Formula | C23: n | D23: p | E23: Mean of (X/n)
A24: 7.4 | B24: 7.4.4 | C24: 400 | D24: 0.3 | E24: =D24 -> 0.3
A26: Section | B26: Formula | C26: n | D26: p | E26: Std Dev of (X/n)
A27: 7.4 | B27: 7.4.5 | C27: 400 | D27: 0.3 | E27: =(D27*(1-D27)/C27)^0.5 -> 0.02291287847
A31: Section | B31: Formula | C31: x | D31: µ | E31: σ | F31: Pr (X <= x)
A32: 7.5 | B32: 7.5.1 | C32: 115 | D32: 120 | E32: 9.16515139 | F32: =_xlfn.NORM.DIST(C32,D32,E32,TRUE) -> 0.2926894642
A34: Section | B34: Formula | C34: µ | D34: z | E34: σ | F34: x
A35: 7.5 | B35: 7.5.2 | C35: 120 | D35: -0.5455447256 | E35: 9.16515139 | F35: =C35+D35*E35 -> 115
A37: Section | B37: Formula | C37: x | D37: µ | E37: σ | F37: z
A38: 7.5 | B38: 7.5.4 | C38: 115 | D38: 120 | E38: 9.16515139 | F38: =(C38-D38)/E38 -> -0.5455447256
A40: Section | B40: Formula | C40: x | D40: µ | E40: σ | F40: z | G40: Pr (Z <= z)
A41: 7.5 | B41: 7.5.5 | C41: 115 | D41: 120 | E41: 9.16515139 | F41: =(C41-D41)/E41 -> -0.5455447256 | G41: =_xlfn.NORM.DIST(F41,0,1,TRUE) -> 0.2926894642
A43: Section | B43: Formula | C43: x | D43: µ | E43: σ | F43: z | G43: Pr (Z <= z)
A44: 7.5 | B44: 7.5.6 | C44: 115 | D44: 120 | E44: 9.16515139 | F44: =(C44-D44)/E44 -> -0.5455447256 | G44: =_xlfn.NORM.S.DIST(F44,TRUE) -> 0.2926894642
A48: Section | B48: Formula | C48: x | D48: µ | E48: σ | F48: z | G48: Pr (Z <= z) | H48: -z | I48: 1-Pr (Z <= -z)
A49: 7.6 | B49: 7.6.1 | C49: 115 | D49: 120 | E49: 9.16515139 | F49: =(C49-D49)/E49 -> -0.5455447256 | G49: =_xlfn.NORM.S.DIST(F49,TRUE) -> 0.2926894642 | H49: =-F49 -> 0.5455447256 | I49: =1-_xlfn.NORM.S.DIST(H49,TRUE) -> 0.2926894642
A53: Section | B53: Formula | C53: x | D53: n | E53: p | F53: Binom | G53: Norm
A54: 7.7 | B54: 7.7.1 | C54: 115 | D54: 400 | E54: 0.3 | F54: =_xlfn.BINOM.DIST(C54,D54,E54,TRUE) -> 0.3137067185 | G54: =_xlfn.NORM.DIST(C54/D54,E54,(E54*(1-E54)/D54)^0.5,TRUE) -> 0.2926894642
A56: Section | B56: Formula | C56: x | D56: n | E56: p | F56: z | G56: Binom | H56: Norm
A57: 7.7 | B57: 7.7.2 7.7.3 | C57: 115 | D57: 400 | E57: 0.3 | F57: =(C57/D57-E57)/((E57*(1-E57)/D57)^0.5) -> -0.5455447256 | G57: =_xlfn.BINOM.DIST(C57,D57,E57,TRUE) -> 0.3137067185 | H57: =_xlfn.NORM.DIST(F57,0,1,TRUE) -> 0.2926894642
A59: Section | B59: Formula | C59: x | D59: n | E59: p | F59: Binom | G59: Norm
A60: 7.7 | B60: 7.7.5 | C60: 115 | D60: 400 | E60: 0.3 | F60: =_xlfn.BINOM.DIST(C60,D60,E60,TRUE) -> 0.3137067185 | G60: =_xlfn.NORM.DIST((C60+0.5)/D60,E60,(E60*(1-E60)/D60)^0.5,TRUE) -> 0.3117166707
A62: Section | B62: Formula | C62: x | D62: n | E62: p | F62: z | G62: Binom | H62: Norm
A63: 7.7 | B63: 7.7.6 7.7.7 | C63: 115 | D63: 400 | E63: 0.3 | F63: =((C63+0.5)/D63-E63)/((E63*(1-E63)/D63)^0.5) -> -0.490990253 | G63: =_xlfn.BINOM.DIST(C63,D63,E63,TRUE) -> 0.3137067185 | H63: =_xlfn.NORM.DIST(F63,0,1,TRUE) -> 0.3117166707
A67: Section | B67: Formula | C67: Pr (X <= x) | D67: µ | E67: σ | F67: x
A68: 7.8 | B68: 7.8.2 | C68: 0.2926894642 | D68: 120 | E68: 9.16515139 | F68: =_xlfn.NORM.INV(C68,D68,E68) -> 115
A70: Section | B70: Formula | C70: Pr (Z <= z) | D70: µ | E70: σ | F70: z | G70: x
A71: 7.8 | B71: 7.8.3 7.8.4 | C71: 0.2926894642 | D71: 120 | E71: =E38 -> 9.16515139 | F71: =_xlfn.NORM.INV(C71,0,1) -> -0.5455447256 | G71: =F71*E71+D71 -> 115

Sheet Section 8
A1: Section | B1: Formula | C1: µ | D1: σ | E1: e | F1: Pr (X <= µ - e)
A2: 8.1 | B2: 8.1.1 | C2: 0.3 | D2: 0.02291287847 | E2: =18/400 -> 0.045 | F2: =_xlfn.NORM.DIST(C2-E2,C2,D2,TRUE) -> 0.02476730672
A4: Section | B4: Formula | C4: µ | D4: σ | E4: e | F4: Pr (µ-e ≤ X ≤ µ+e)
A5: 8.1 | B5: 8.1.2 | C5: 0.3 | D5: 0.02291287847 | E5: =18/400 -> 0.045 | F5: =_xlfn.NORM.DIST(C5+E5,C5,D5,TRUE)-_xlfn.NORM.DIST(C5-E5,C5,D5,TRUE) -> 0.9504653866
A7: Section | B7: Formula | C7: µ | D7: σ | E7: e | F7: Pr (X ≥ µ + e)
A8: 8.1 | B8: 8.1.3 | C8: 0.3 | D8: 0.02291287847 | E8: =18/400 -> 0.045 | F8: =_xlfn.NORM.DIST(C8+E8,C8,D8,TRUE) -> 0.9752326933
A10: Section | B10: Formula | C10: n | D10: p | E10: e | F10: Pr (X <= p - e)
A11: 8.1 | B11: 8.1.4 | C11: 400 | D11: 0.3 | E11: =18/400 -> 0.045 | F11: =_xlfn.NORM.DIST(D11-E11,D11,(D11*(1-D11)/C11)^0.5,TRUE) -> 0.02476730672
A13: Section | B13: Formula | C13: n | D13: p | E13: e | F13: Pr (p-e ≤ X ≤p +e)
A14: 8.1 | B14: 8.1.5 | C14: 400 | D14: 0.3 | E14: =18/400 -> 0.045 | F14: =_xlfn.NORM.DIST(D14+E14,D14,(D14*(1-D14)/C14)^0.5,TRUE)-_xlfn.NORM.DIST(D14-E14,D14,(D14*(1-D14)/C14)^0.5,TRUE) -> 0.9504653866
A16: Section | B16: Formula | C16: n | D16: p | E16: e | F16: Pr (X ≥ p + e)
A17: 8.1 | B17: 8.1.6 | C17: 400 | D17: 0.3 | E17: =18/400 -> 0.045 | F17: =_xlfn.NORM.DIST(D17+E17,D17,(D17*(1-D17)/C17)^0.5,TRUE) -> 0.9752326933
A21: Section | B21: Formula | C21: x | D21: n | E21: CL | F21: x/n | G21: pU | H21: ME
A22: 8.2 | B22: 8.2.6 8.2.7 | C22: 120 | D22: 400 | E22: 0.95 | F22: =C22/D22 -> 0.3 | G22: =_xlfn.NORM.INV(1-(1-E22)/2, F22, (F22*(1-F22)/D22)^0.5) -> 0.3449084166 | H22: =G22-F22 -> 0.04490841659
A24: Section | B24: Formula | C24: x | D24: n | E24: CL | F24: x/n | G24: pL | H24: ME
A25: 8.2 | B25: 8.2.8 8.2.9 | C25: 120 | D25: 400 | E25: 0.95 | F25: =C25/D25 -> 0.3 | G25: =_xlfn.NORM.INV((1-E25)/2, F25, (F25*(1-F25)/D25)^0.5) -> 0.2550915834 | H25: =F25-G25 -> 0.04490841659
A27: Section | B27: Formula | C27: x | D27: n | E27: ME | F27: x/n | G27: CL
A28: 8.2 | B28: 8.2.10 | C28: 120 | D28: 400 | E28: 0.05 | F28: =C28/D28 -> 0.3 | G28: =_xlfn.NORM.DIST(F28+E28,F28,(F28*(1-F28)/D28)^0.5,TRUE)-_xlfn.NORM.DIST(F28-E28,F28,(F28*(1-F28)/D28)^0.5,TRUE) -> 0.9709036683
A30: Section | B30: Formula | C30: p | D30: CL | E30: ME | F30: n
A31: 8.2 | B31: 8.2.11 | C31: 0.5 | D31: =E22 -> 0.95 | E31: =E28 -> 0.05 | F31: =C31*(1-C31)/ ((E31/_xlfn.NORM.INV(1-(1-D31)/2,0,1))^2) -> 384.1458821
A35: Section | B35: Formula | C35: n | D35: x | E35: CL | F35: p | G35: a | H35: b | I35: c | J35: pL | K35: pU
A36: 8.3 | B36: 8.3.4 | C36: 120 | D36: 400 | E36: 0.95 | F36: =C36/D36 -> 0.3 | G36: =1+(_xlfn.NORM.INV((1 - (1 - E36)/2), 0, 1)^2)/D36 -> 1.009603647
B37: 8.3.5 | H37: =-(2*F36+(_xlfn.NORM.INV((1-(1-E36)/2),0,1)^2/D36)) -> -0.6096036471
B38: 8.3.6 | I38: =F36^2 -> 0.09
B39: 8.3.7 | J39: =(-H37-(H37^2-4*G36*I38)^0.5)/(2*G36) -> 0.257167672 | K39: =(-H37+(H37^2-4*G36*I38)^0.5)/(2*G36) -> 0.3466372458
A43: Section | B43: Formula | C43: n | D43: x | E43: sample p | F43: CL | G43: pL | H43: pU | I43: pL | J43: pU
A44: 8.4 | B44: 8.4.1 8.4.2 | C44: 400 | D44: 120 | E44: =D44/C44 -> 0.3 | F44: 0.95 | G44: =Binom_CI_L(F44,D44,C44) -> 0.2554667281 | H44: =Binom_CI_U(F44,D44,C44) -> 0.3475218791 | I44: =_xlfn.BETA.INV((1-F44)/2,D44,C44-D44+1) -> 0.2554667281 | J44: =_xlfn.BETA.INV(1-(1-F44)/2,D44+1,C44-D44) -> 0.3475218791

Sheet Section 9
A1: Section | B1: Formula | C1: u | D1: n | E1: (1-u)^n
A2: 9.1 | B2: 9.1.2 | C2: 0.1 | D2: 2 | E2: =(1-C2)^D2 -> 0.81
A3: 9.1 | B3: 9.1.2 | C3: 0.1 | D3: 28 | E3: =(1-C3)^D3 -> 0.0523347633
A4: 9.1 | B4: 9.1.2 | C4: 0.1 | D4: 29 | E4: =(1-C4)^D4 -> 0.04710128697
A6: Section | B6: Formula | C6: u | D6: CL | E6: n | F6: n (rounded up)
A7: 9.1 | B7: 9.1.5 9.1.6 | C7: 0.1 | D7: 0.95 | E7: =LN(1-D7)/LN(1-C7) -> 28.43315881 | F7: =ROUNDUP(E7,0) -> 29
A9: Section | B9: Formula | C9: u | D9: MaxAccUn | E9: n | F9: Pr (X <= 0)
A10: 9.1 | B10: 9.1.8 | C10: 0.1 | D10: 0.05 | E10: 28 | F10: =_xlfn.BINOM.DIST(0,E10,C10,TRUE) -> 0.0523347633
A11: 9.1 | B11: 9.1.8 | C11: 0.1 | D11: 0.05 | E11: 29 | F11: =_xlfn.BINOM.DIST(0,E11,C11,TRUE) -> 0.04710128697
A13: Section | B13: Formula | C13: u | D13: MaxAccUn | E13: n | F13: N | G13: Pr (X <= 0)
A14: 9.1 | B14: 9.1.10 | C14: 0.1 | D14: 0.05 | E14: 28 | F14: 2000 | G14: =_xlfn.HYPGEOM.DIST(0,E14,C14*F14,F14,TRUE) -> 0.05123666592
A15: 9.1 | B15: 9.1.10 | C15: 0.1 | D15: 0.05 | E15: 29 | F15: 2000 | G15: =_xlfn.HYPGEOM.DIST(0,E15,C15*F15,F15,TRUE) -> 0.04604024949
A19: Section | B19: Formula | C19: x | D19: n | E19: M | F19: N | G19: 1 - Pr (X <= x)
A20: 9.2 | B20: 9.2.1 9.2.2 9.2.3 | C20: 0 | D20: 29 | E20: 20 | F20: 2000 | G20: =1-_xlfn.HYPGEOM.DIST(C20,D20,E20,F20,TRUE) -> 0.2543731729
A22: Section | B22: Formula | C22: u | D22: MaxAccUn | E22: a | F22: MaxRejAcc | G22: N | H22: x | I22: n
A23: 9.2 | B23: 9.2.4 9.2.6 | C23: 0.1 | D23: 0.05 | E23: 0.01 | F23: 0.05 | G23: 2000 | H23: =Acc_HypGeom_Array(C23,D23,E23,F23,G23) -> 2 | I23: 61
A24: 9.2 | B24: 9.2.4 9.2.6 | C24: 0.1 | D24: 0.02 | E24: 0.01 | F24: 0.02 | G24: 2000 | H24: =Acc_HypGeom_Array(C24,D24,E24,F24,G24) -> 3 | I24: 87
A25: 9.2 | B25: 9.2.4 9.2.6 | C25: 0.1 | D25: 0.05 | E25: 0.01 | F25: 1 | G25: 2000 | H25: =Acc_HypGeom_Array(C25,D25,E25,F25,G25) -> 0 | I25: 29
